[Event "Titled Tuesday Blitz January 03 Early 2023"]
[White "HSH1987"]
[Black "Narayanan, Srinath"]
[BlackFideId "5018420"]
[WhiteElo "2675"]
[BlackElo "2559"]
[Result "1/2-1/2"]
[Round "08"]
[TimeControl "180+2"]
[Date "2023.01.03"]
[WhiteClock "0:00:07"]
[BlackClock "0:00:55"]

1. Nf3 {[%clk 0:03:00]}  d5 {[%clk 0:02:59]} 2. g3 {[%clk 0:03:01]}  g6 {[%clk 0:02:58]} 3. Bg2 {[%clk 0:03:02]}  Bg7 {[%clk 0:02:58]} 4. O-O {[%clk 0:03:01]}  e5 {[%clk 0:02:59]} 5. d3 {[%clk 0:03:02]}  Ne7 {[%clk 0:02:59]} 6. c4 {[%clk 0:03:02]}  O-O {[%clk 0:02:59]} 7. cxd5 {[%clk 0:03:02]}  Nxd5 {[%clk 0:03:00]} 8. Nc3 {[%clk 0:03:01]}  Nxc3 {[%clk 0:02:59]} 9. bxc3 {[%clk 0:03:02]}  e4 {[%clk 0:03:00]} 10. dxe4 {[%clk 0:03:02]}  Bxc3 {[%clk 0:02:59]} 11. Qxd8 {[%clk 0:02:57]}  Rxd8 {[%clk 0:03:00]} 12. Rb1 {[%clk 0:02:57]}  Nc6 {[%clk 0:03:00]} 13. Bf4 {[%clk 0:02:54]}  Ba5 {[%clk 0:02:59]} 14. Rfc1 {[%clk 0:02:51]}  Bb6 {[%clk 0:02:58]} 15. Nd2 {[%clk 0:02:34]}  Nd4 {[%clk 0:02:46]} 16. Kf1 {[%clk 0:02:26]}  Ne6 {[%clk 0:02:42]} 17. Nc4 {[%clk 0:02:25]}  Nxf4 {[%clk 0:02:43]} 18. gxf4 {[%clk 0:02:26]}  Be6 {[%clk 0:02:44]} 19. e5 {[%clk 0:02:20]}  Rd4 {[%clk 0:02:24]} 20. Nxb6 {[%clk 0:02:11]}  cxb6 {[%clk 0:02:21]} 21. Bxb7 {[%clk 0:01:58]}  Rad8 {[%clk 0:02:18]} 22. e3 {[%clk 0:01:57]}  Ra4 {[%clk 0:02:16]} 23. Rb2 {[%clk 0:01:51]}  Rxa2 {[%clk 0:02:15]} 24. Rxa2 {[%clk 0:01:42]}  Bxa2 {[%clk 0:02:16]} 25. Ra1 {[%clk 0:01:14]}  Bc4+ {[%clk 0:02:15]} 26. Ke1 {[%clk 0:01:10]}  a5 {[%clk 0:02:16]} 27. e4 {[%clk 0:01:09]}  h6 {[%clk 0:02:02]} 28. Bd5 {[%clk 0:01:04]}  Bd3 {[%clk 0:01:51]} 29. Rc1 {[%clk 0:00:59]}  Bb5 {[%clk 0:01:41]} 30. Rc7 {[%clk 0:00:55]}  Rd7 {[%clk 0:01:40]} 31. Rc8+ {[%clk 0:00:56]}  Kg7 {[%clk 0:01:40]} 32. Rb8 {[%clk 0:00:56]}  Ra7 {[%clk 0:01:33]} 33. Rxb6 {[%clk 0:00:55]}  Bd7 {[%clk 0:01:32]} 34. Rb7 {[%clk 0:00:47]}  Rxb7 {[%clk 0:01:29]} 35. Bxb7 {[%clk 0:00:46]}  g5 {[%clk 0:01:30]} 36. f5 {[%clk 0:00:46]}  Kf8 {[%clk 0:01:24]} 37. Bd5 {[%clk 0:00:45]}  Ke7 {[%clk 0:01:25]} 38. Kd2 {[%clk 0:00:44]}  Bb5 {[%clk 0:01:26]} 39. Kc3 {[%clk 0:00:44]}  f6 {[%clk 0:01:23]} 40. Kd4 {[%clk 0:00:30]}  a4 {[%clk 0:01:21]} 41. Be6 {[%clk 0:00:28]}  a3 {[%clk 0:01:19]} 42. exf6+ {[%clk 0:00:27]}  Kxf6 {[%clk 0:01:20]} 43. e5+ {[%clk 0:00:28]}  Ke7 {[%clk 0:01:20]} 44. Kc3 {[%clk 0:00:27]}  Ba4 {[%clk 0:01:13]} 45. Kb4 {[%clk 0:00:25]}  Bd7 {[%clk 0:01:09]} 46. Bb3 {[%clk 0:00:09]}  Bxf5 {[%clk 0:01:07]} 47. Kxa3 {[%clk 0:00:10]}  Be6 {[%clk 0:01:07]} 48. Bc2 {[%clk 0:00:08]}  Bd5 {[%clk 0:01:07]} 49. Bf5 {[%clk 0:00:08]}  Be6 {[%clk 0:01:08]} 50. Be4 {[%clk 0:00:08]}  Bd7 {[%clk 0:00:55]} 51. Bd5 {[%clk 0:00:08]}  Be6 {[%clk 0:00:55]} 52. Be4 {[%clk 0:00:07]}  Bd7 {[%clk 0:00:55]} 1/2-1/2


[Site "https://www.chess.com"]

[Event "Titled Tuesday Blitz January 03 Early 2023"]
[White "Atakhan, Abtin"]
[Black "Tactrics"]
[WhiteFideId "22502203"]
[WhiteElo "2422"]
[BlackElo "2846"]
[Result "1-0"]
[Round "08"]
[TimeControl "180+2"]
[Date "2023.01.03"]
[WhiteClock "0:00:31"]
[BlackClock "0:00:55"]

1. Nf3 {[%clk 0:03:00]}  Nf6 {[%clk 0:02:53]} 2. c4 {[%clk 0:03:01]}  c5 {[%clk 0:02:54]} 3. g3 {[%clk 0:03:00]}  b6 {[%clk 0:02:54]} 4. Bg2 {[%clk 0:03:01]}  Bb7 {[%clk 0:02:55]} 5. O-O {[%clk 0:03:01]}  e6 {[%clk 0:02:55]} 6. b3 {[%clk 0:03:00]}  Be7 {[%clk 0:02:55]} 7. Bb2 {[%clk 0:03:00]}  O-O {[%clk 0:02:56]} 8. Nc3 {[%clk 0:03:00]}  d6 {[%clk 0:02:56]} 9. e3 {[%clk 0:03:01]}  Nbd7 {[%clk 0:02:56]} 10. Qe2 {[%clk 0:03:02]}  a6 {[%clk 0:02:56]} 11. Rad1 {[%clk 0:03:00]}  Qc7 {[%clk 0:02:56]} 12. Ne1 {[%clk 0:03:00]}  Rfe8 {[%clk 0:02:55]} 13. d3 {[%clk 0:02:59]}  Bc6 {[%clk 0:02:51]} 14. f4 {[%clk 0:02:59]}  b5 {[%clk 0:02:50]} 15. g4 {[%clk 0:02:57]}  Nf8 {[%clk 0:02:47]} 16. g5 {[%clk 0:02:55]}  N6d7 {[%clk 0:02:48]} 17. h4 {[%clk 0:02:53]}  f5 {[%clk 0:02:41]} 18. h5 {[%clk 0:02:28]}  b4 {[%clk 0:02:39]} 19. Nb1 {[%clk 0:02:23]}  a5 {[%clk 0:02:38]} 20. Nd2 {[%clk 0:02:20]}  a4 {[%clk 0:02:37]} 21. h6 {[%clk 0:02:16]}  g6 {[%clk 0:02:32]} 22. d4 {[%clk 0:01:54]}  Bxg2 {[%clk 0:02:26]} 23. Qxg2 {[%clk 0:01:43]}  axb3 {[%clk 0:02:27]} 24. axb3 {[%clk 0:01:44]}  Ra2 {[%clk 0:02:27]} 25. Nd3 {[%clk 0:01:44]}  Rea8 {[%clk 0:02:08]} 26. d5 {[%clk 0:01:38]}  Qb7 {[%clk 0:02:05]} 27. e4 {[%clk 0:01:35]}  Nb6 {[%clk 0:01:58]} 28. Rde1 {[%clk 0:01:23]}  R8a7 {[%clk 0:01:44]} 29. dxe6 {[%clk 0:01:15]}  fxe4 {[%clk 0:01:35]} 30. Nxe4 {[%clk 0:01:08]}  Nxe6 {[%clk 0:01:30]} 31. f5 {[%clk 0:01:08]}  Nxg5 {[%clk 0:01:22]} 32. f6 {[%clk 0:00:44]}  Rxb2 {[%clk 0:01:04]} 33. Qxb2 {[%clk 0:00:35]}  Bf8 {[%clk 0:00:55]} 34. Nxg5 {[%clk 0:00:31]} 1-0


[Site "https://www.chess.com"]

[Event "Titled Tuesday Blitz January 03 Early 2023"]
[White "Vlassov, Nikolai"]
[Black "Gunina, Valentina"]
[WhiteFideId "4103360"]
[BlackFideId "4167570"]
[WhiteElo "2283"]
[BlackElo "2469"]
[Result "1-0"]
[Round "08"]
[TimeControl "180+2"]
[Date "2023.01.03"]
[WhiteClock "0:00:38"]
[BlackClock "0:01:26"]

1. e4 {[%clk 0:03:00]}  c6 {[%clk 0:03:00]} 2. d4 {[%clk 0:03:00]}  d5 {[%clk 0:03:00]} 3. e5 {[%clk 0:03:00]}  c5 {[%clk 0:03:00]} 4. dxc5 {[%clk 0:03:00]}  e6 {[%clk 0:03:00]} 5. Nf3 {[%clk 0:02:59]}  Bxc5 {[%clk 0:03:00]} 6. a3 {[%clk 0:02:59]}  a6 {[%clk 0:02:59]} 7. Bd3 {[%clk 0:02:56]}  Ne7 {[%clk 0:02:59]} 8. O-O {[%clk 0:02:55]}  Ng6 {[%clk 0:02:55]} 9. g3 {[%clk 0:02:40]}  Nc6 {[%clk 0:02:55]} 10. Qe2 {[%clk 0:02:39]}  Nd4 {[%clk 0:02:50]} 11. Nxd4 {[%clk 0:02:38]}  Bxd4 {[%clk 0:02:50]} 12. c3 {[%clk 0:02:31]}  Bb6 {[%clk 0:02:44]} 13. Nd2 {[%clk 0:02:22]}  O-O {[%clk 0:02:44]} 14. Nf3 {[%clk 0:02:12]}  f6 {[%clk 0:02:44]} 15. Bxg6 {[%clk 0:02:08]}  hxg6 {[%clk 0:02:44]} 16. h4 {[%clk 0:02:03]}  Bd7 {[%clk 0:02:41]} 17. Bf4 {[%clk 0:02:00]}  Bb5 {[%clk 0:02:40]} 18. Qd2 {[%clk 0:01:57]}  Bxf1 {[%clk 0:02:40]} 19. Rxf1 {[%clk 0:01:58]}  Rc8 {[%clk 0:02:34]} 20. Kg2 {[%clk 0:01:57]}  Qd7 {[%clk 0:02:21]} 21. Re1 {[%clk 0:01:50]}  f5 {[%clk 0:02:18]} 22. Ng5 {[%clk 0:01:46]}  Rc4 {[%clk 0:02:13]} 23. Qe2 {[%clk 0:01:42]}  Bd8 {[%clk 0:02:11]} 24. Nf3 {[%clk 0:01:35]}  Re4 {[%clk 0:02:07]} 25. Qd2 {[%clk 0:01:34]}  Rxe1 {[%clk 0:01:54]} 26. Qxe1 {[%clk 0:01:33]}  Bb6 {[%clk 0:01:50]} 27. Ng5 {[%clk 0:01:25]}  Rc8 {[%clk 0:01:48]} 28. Qd1 {[%clk 0:01:20]}  Bd8 {[%clk 0:01:47]} 29. Nf3 {[%clk 0:01:13]}  Qb5 {[%clk 0:01:47]} 30. Nd4 {[%clk 0:01:08]}  Qe8 {[%clk 0:01:44]} 31. Nf3 {[%clk 0:01:06]}  Kf7 {[%clk 0:01:43]} 32. Bg5 {[%clk 0:01:05]}  Qb5 {[%clk 0:01:40]} 33. h5 {[%clk 0:00:54]}  Qc4 {[%clk 0:01:31]} 34. Bxd8 {[%clk 0:00:46]}  Rxd8 {[%clk 0:01:31]} 35. Ng5+ {[%clk 0:00:43]}  Ke7 {[%clk 0:01:31]} 36. hxg6 {[%clk 0:00:43]}  d4 {[%clk 0:01:27]} 37. Nf7 {[%clk 0:00:40]}  dxc3 {[%clk 0:01:26]} 38. Qxd8# {[%clk 0:00:38]} 1-0


[Site "https://www.chess.com"]

[Event "Titled Tuesday Blitz January 03 Early 2023"]
[White "Atanasov, Anthony"]
[Black "Donchenko, Alexander"]
[WhiteFideId "2623897"]
[BlackFideId "24603295"]
[WhiteElo "2368"]
[BlackElo "2669"]
[Result "1-0"]
[Round "08"]
[TimeControl "180+2"]
[Date "2023.01.03"]
[WhiteClock "0:00:05"]
[BlackClock "0:00:38"]

1. d4 {[%clk 0:03:00]}  Nf6 {[%clk 0:02:59]} 2. Nf3 {[%clk 0:03:01]}  d5 {[%clk 0:02:59]} 3. Bf4 {[%clk 0:03:01]}  e6 {[%clk 0:02:59]} 4. e3 {[%clk 0:03:01]}  Bd6 {[%clk 0:03:00]} 5. Nbd2 {[%clk 0:03:02]}  O-O {[%clk 0:02:58]} 6. Bd3 {[%clk 0:03:01]}  b6 {[%clk 0:02:59]} 7. Qe2 {[%clk 0:03:00]}  Bb7 {[%clk 0:02:58]} 8. Bg5 {[%clk 0:02:49]}  c5 {[%clk 0:02:50]} 9. c3 {[%clk 0:02:47]}  h6 {[%clk 0:02:45]} 10. Bh4 {[%clk 0:02:43]}  Nbd7 {[%clk 0:02:40]} 11. e4 {[%clk 0:02:42]}  dxe4 {[%clk 0:02:41]} 12. Bxe4 {[%clk 0:02:33]}  Qc7 {[%clk 0:02:38]} 13. Bxb7 {[%clk 0:02:29]}  Qxb7 {[%clk 0:02:39]} 14. O-O {[%clk 0:02:27]}  Nd5 {[%clk 0:02:33]} 15. Bg3 {[%clk 0:02:25]}  Bxg3 {[%clk 0:02:30]} 16. hxg3 {[%clk 0:02:26]}  Rfd8 {[%clk 0:02:27]} 17. Rad1 {[%clk 0:02:24]}  Rac8 {[%clk 0:02:26]} 18. Ne4 {[%clk 0:02:21]}  N7f6 {[%clk 0:02:23]} 19. dxc5 {[%clk 0:02:10]}  bxc5 {[%clk 0:02:22]} 20. c4 {[%clk 0:02:10]}  Ne7 {[%clk 0:02:13]} 21. Nd6 {[%clk 0:02:07]}  Rxd6 {[%clk 0:02:09]} 22. Rxd6 {[%clk 0:02:07]}  Nf5 {[%clk 0:02:08]} 23. Rxe6 {[%clk 0:01:57]}  Nxg3 {[%clk 0:01:47]} 24. fxg3 {[%clk 0:01:58]}  fxe6 {[%clk 0:01:47]} 25. Qxe6+ {[%clk 0:01:58]}  Kh7 {[%clk 0:01:46]} 26. Qf5+ {[%clk 0:01:45]}  Kg8 {[%clk 0:01:46]} 27. Qe6+ {[%clk 0:01:39]}  Kh7 {[%clk 0:01:45]} 28. Ne5 {[%clk 0:01:05]}  Re8 {[%clk 0:01:40]} 29. Qf5+ {[%clk 0:01:04]}  Kg8 {[%clk 0:01:40]} 30. b3 {[%clk 0:00:53]}  Qe7 {[%clk 0:01:39]} 31. Ng6 {[%clk 0:00:50]}  Qe3+ {[%clk 0:01:38]} 32. Kh2 {[%clk 0:00:50]}  Qe2 {[%clk 0:01:17]} 33. Rf4 {[%clk 0:00:41]}  Qxa2 {[%clk 0:01:03]} 34. Qxc5 {[%clk 0:00:39]}  Qxb3 {[%clk 0:01:02]} 35. Rxf6 {[%clk 0:00:20]}  gxf6 {[%clk 0:01:00]} 36. Qd5+ {[%clk 0:00:21]}  Kg7 {[%clk 0:00:53]} 37. Qd7+ {[%clk 0:00:21]}  Kxg6 {[%clk 0:00:53]} 38. Qxe8+ {[%clk 0:00:21]}  Kg7 {[%clk 0:00:54]} 39. c5 {[%clk 0:00:20]}  Qf7 {[%clk 0:00:48]} 40. Qe2 {[%clk 0:00:09]}  Qd5 {[%clk 0:00:47]} 41. Qe7+ {[%clk 0:00:08]}  Qf7 {[%clk 0:00:47]} 42. Qd6 {[%clk 0:00:07]}  Qf8 {[%clk 0:00:38]} 43. Qd7+ {[%clk 0:00:05]}  Qf7 {[%clk 0:00:38]} 44. c6 {[%clk 0:00:05]} 1-0


[Site "https://www.chess.com"]

[Event "Titled Tuesday Blitz January 03 Early 2023"]
[White "Shipov, Sergei"]
[Black "Aghasiyev, Kamal"]
[WhiteFideId "4113624"]
[BlackFideId "13402854"]
[WhiteElo "2541"]
[BlackElo "2441"]
[Result "1-0"]
[Round "08"]
[TimeControl "180+2"]
[Date "2023.01.03"]
[WhiteClock "0:00:25"]
[BlackClock "0:00:12"]

1. d4 {[%clk 0:03:00]}  d5 {[%clk 0:02:59]} 2. c4 {[%clk 0:03:01]}  e6 {[%clk 0:02:59]} 3. Nc3 {[%clk 0:03:01]}  Nf6 {[%clk 0:03:00]} 4. cxd5 {[%clk 0:03:01]}  exd5 {[%clk 0:02:59]} 5. Bg5 {[%clk 0:03:01]}  Nbd7 {[%clk 0:02:59]} 6. e3 {[%clk 0:03:01]}  c6 {[%clk 0:03:00]} 7. Bd3 {[%clk 0:03:01]}  Be7 {[%clk 0:03:00]} 8. Qc2 {[%clk 0:03:02]}  h6 {[%clk 0:03:01]} 9. Bh4 {[%clk 0:03:01]}  Nh5 {[%clk 0:03:01]} 10. Bxe7 {[%clk 0:03:01]}  Qxe7 {[%clk 0:03:01]} 11. Nge2 {[%clk 0:03:01]}  Nb6 {[%clk 0:03:00]} 12. O-O {[%clk 0:03:01]}  O-O {[%clk 0:02:59]} 13. Rae1 {[%clk 0:03:00]}  Bd7 {[%clk 0:02:57]} 14. Nc1 {[%clk 0:03:00]}  Rae8 {[%clk 0:02:55]} 15. Nb3 {[%clk 0:03:00]}  Nc8 {[%clk 0:02:52]} 16. f3 {[%clk 0:02:55]}  Qg5 {[%clk 0:02:44]} 17. Nc5 {[%clk 0:02:43]}  Nb6 {[%clk 0:02:29]} 18. f4 {[%clk 0:02:27]}  Qh4 {[%clk 0:02:23]} 19. Nxb7 {[%clk 0:02:27]}  Nf6 {[%clk 0:02:18]} 20. Nc5 {[%clk 0:02:13]}  Bc8 {[%clk 0:02:08]} 21. h3 {[%clk 0:02:05]}  Re7 {[%clk 0:01:57]} 22. Qf2 {[%clk 0:02:05]}  Qh5 {[%clk 0:01:52]} 23. Qf3 {[%clk 0:01:25]}  Qh4 {[%clk 0:01:49]} 24. Qf2 {[%clk 0:01:18]}  Qh5 {[%clk 0:01:49]} 25. Ne2 {[%clk 0:01:11]}  Rfe8 {[%clk 0:01:43]} 26. Ng3 {[%clk 0:01:11]}  Qh4 {[%clk 0:01:43]} 27. b3 {[%clk 0:01:04]}  g6 {[%clk 0:01:40]} 28. Re2 {[%clk 0:01:02]}  Bg4 {[%clk 0:01:35]} 29. Ree1 {[%clk 0:01:01]}  Bc8 {[%clk 0:01:34]} 30. Bc2 {[%clk 0:01:01]}  Nbd7 {[%clk 0:01:24]} 31. Nd3 {[%clk 0:01:01]}  Ba6 {[%clk 0:01:22]} 32. Ne5 {[%clk 0:00:54]}  Bxf1 {[%clk 0:01:18]} 33. Rxf1 {[%clk 0:00:51]}  Nxe5 {[%clk 0:01:08]} 34. fxe5 {[%clk 0:00:51]}  Nh5 {[%clk 0:01:00]} 35. Nxh5 {[%clk 0:00:48]}  Qxf2+ {[%clk 0:01:00]} 36. Rxf2 {[%clk 0:00:45]}  gxh5 {[%clk 0:01:01]} 37. Rf5 {[%clk 0:00:45]}  c5 {[%clk 0:00:59]} 38. Rxh5 {[%clk 0:00:45]}  cxd4 {[%clk 0:00:41]} 39. exd4 {[%clk 0:00:46]}  Rc8 {[%clk 0:00:42]} 40. Bf5 {[%clk 0:00:43]}  Rc1+ {[%clk 0:00:41]} 41. Kh2 {[%clk 0:00:44]}  Rd1 {[%clk 0:00:39]} 42. Rh4 {[%clk 0:00:39]}  Rd2 {[%clk 0:00:37]} 43. a4 {[%clk 0:00:34]}  Rb7 {[%clk 0:00:35]} 44. e6 {[%clk 0:00:34]}  Kf8 {[%clk 0:00:16]} 45. exf7 {[%clk 0:00:27]}  Rxb3 {[%clk 0:00:13]} 46. Be6 {[%clk 0:00:26]}  Rbd3 {[%clk 0:00:13]} 47. Rxh6 {[%clk 0:00:25]}  Rf2 {[%clk 0:00:12]} 48. Rh8+ {[%clk 0:00:25]}  Kg7 {[%clk 0:00:12]} 49. Rg8+ {[%clk 0:00:25]} 1-0


[Site "https://www.chess.com"]

[Event "Titled Tuesday Blitz January 03 Early 2023"]
[White "Tan, Zhongyi"]
[Black "Yeritsyan, Hayk"]
[WhiteFideId "8603642"]
[BlackFideId "13307320"]
[WhiteElo "2517"]
[BlackElo "2241"]
[Result "1-0"]
[Round "08"]
[TimeControl "180+2"]
[Date "2023.01.03"]
[WhiteClock "0:00:56"]
[BlackClock "0:00:04"]

1. e4 {[%clk 0:02:56]}  e5 {[%clk 0:02:58]} 2. Nf3 {[%clk 0:02:56]}  Nc6 {[%clk 0:02:55]} 3. Bc4 {[%clk 0:02:56]}  Bc5 {[%clk 0:02:53]} 4. c3 {[%clk 0:02:52]}  Nf6 {[%clk 0:02:53]} 5. d3 {[%clk 0:02:52]}  d6 {[%clk 0:02:52]} 6. b4 {[%clk 0:02:51]}  Bb6 {[%clk 0:02:52]} 7. a4 {[%clk 0:02:51]}  a6 {[%clk 0:02:49]} 8. O-O {[%clk 0:02:48]}  h6 {[%clk 0:02:47]} 9. Re1 {[%clk 0:02:42]}  Bg4 {[%clk 0:02:38]} 10. Nbd2 {[%clk 0:02:40]}  Qe7 {[%clk 0:02:35]} 11. Bb2 {[%clk 0:02:37]}  O-O {[%clk 0:02:29]} 12. h3 {[%clk 0:02:36]}  Bh5 {[%clk 0:02:28]} 13. Nf1 {[%clk 0:02:35]}  g5 {[%clk 0:02:10]} 14. Ng3 {[%clk 0:02:33]}  Bg6 {[%clk 0:02:09]} 15. b5 {[%clk 0:02:28]}  Nd8 {[%clk 0:02:05]} 16. d4 {[%clk 0:02:27]}  Nh5 {[%clk 0:01:49]} 17. Nxe5 {[%clk 0:02:13]}  dxe5 {[%clk 0:01:45]} 18. Nxh5 {[%clk 0:02:12]}  axb5 {[%clk 0:01:39]} 19. Bxb5 {[%clk 0:01:59]}  c6 {[%clk 0:01:21]} 20. Bf1 {[%clk 0:01:54]}  Ne6 {[%clk 0:01:02]} 21. dxe5 {[%clk 0:01:41]}  Rfd8 {[%clk 0:01:02]} 22. Nf6+ {[%clk 0:01:37]}  Kg7 {[%clk 0:01:02]} 23. Qc2 {[%clk 0:01:32]}  Nc5 {[%clk 0:00:38]} 24. c4 {[%clk 0:01:24]}  Qe6 {[%clk 0:00:38]} 25. Be2 {[%clk 0:01:15]}  Ba5 {[%clk 0:00:17]} 26. Bg4 {[%clk 0:01:15]}  Qe7 {[%clk 0:00:17]} 27. e6 {[%clk 0:01:09]}  Kf8 {[%clk 0:00:15]} 28. Nd7+ {[%clk 0:01:00]}  Nxd7 {[%clk 0:00:14]} 29. exd7 {[%clk 0:01:00]}  Bxe1 {[%clk 0:00:14]} 30. Rxe1 {[%clk 0:01:00]}  Kg8 {[%clk 0:00:14]} 31. Qc3 {[%clk 0:00:59]}  f6 {[%clk 0:00:08]} 32. Qxf6 {[%clk 0:00:59]}  Qxf6 {[%clk 0:00:09]} 33. Bxf6 {[%clk 0:00:59]}  Bf7 {[%clk 0:00:05]} 34. Bxd8 {[%clk 0:00:57]}  Rxd8 {[%clk 0:00:05]} 35. e5 {[%clk 0:00:56]}  Bxc4 {[%clk 0:00:04]} 36. e6 {[%clk 0:00:56]} 1-0


[Site "https://www.chess.com"]

[Event "Titled Tuesday Blitz January 03 Early 2023"]
[White "Sychev, Klementy"]
[Black "Lazavik, Denis"]
[WhiteFideId "4114060"]
[BlackFideId "13515110"]
[WhiteElo "2547"]
[BlackElo "2544"]
[Result "0-1"]
[Round "08"]
[TimeControl "180+2"]
[Date "2023.01.03"]
[WhiteClock "0:00:03"]
[BlackClock "0:01:15"]

1. e4 {[%clk 0:02:59]}  c5 {[%clk 0:02:59]} 2. g3 {[%clk 0:02:53]}  d5 {[%clk 0:02:58]} 3. exd5 {[%clk 0:02:53]}  Qxd5 {[%clk 0:02:58]} 4. Nf3 {[%clk 0:02:53]}  Bg4 {[%clk 0:02:58]} 5. Bg2 {[%clk 0:02:53]}  Qe6+ {[%clk 0:02:59]} 6. Kf1 {[%clk 0:02:53]}  Nc6 {[%clk 0:02:58]} 7. h3 {[%clk 0:02:53]}  Bh5 {[%clk 0:02:59]} 8. Nc3 {[%clk 0:02:51]}  Qd7 {[%clk 0:02:56]} 9. d3 {[%clk 0:02:42]}  e6 {[%clk 0:02:56]} 10. Be3 {[%clk 0:02:30]}  Nf6 {[%clk 0:02:51]} 11. g4 {[%clk 0:01:59]}  Bg6 {[%clk 0:02:51]} 12. d4 {[%clk 0:01:59]}  cxd4 {[%clk 0:02:22]} 13. Nxd4 {[%clk 0:01:58]}  Bd6 {[%clk 0:01:49]} 14. Ndb5 {[%clk 0:01:18]}  Be5 {[%clk 0:01:45]} 15. Qxd7+ {[%clk 0:01:17]}  Nxd7 {[%clk 0:01:46]} 16. f4 {[%clk 0:01:15]}  Bxc3 {[%clk 0:01:45]} 17. Nc7+ {[%clk 0:00:27]}  Ke7 {[%clk 0:01:44]} 18. f5 {[%clk 0:00:14]}  Rac8 {[%clk 0:01:30]} 19. fxg6 {[%clk 0:00:04]}  Rxc7 {[%clk 0:01:17]} 20. bxc3 {[%clk 0:00:04]}  hxg6 {[%clk 0:01:17]} 21. Rb1 {[%clk 0:00:03]}  b6 {[%clk 0:01:16]} 22. Ke2 {[%clk 0:00:02]}  Na5 {[%clk 0:01:16]} 23. Rhd1 {[%clk 0:00:01]}  Rxc3 {[%clk 0:01:13]} 24. Rd2 {[%clk 0:00:01]}  Rxe3+ {[%clk 0:01:13]} 25. Kxe3 {[%clk 0:00:01]}  Nc4+ {[%clk 0:01:13]} 26. Ke2 {[%clk 0:00:01]}  Nxd2 {[%clk 0:01:14]} 27. Kxd2 {[%clk 0:00:02]}  Nc5 {[%clk 0:01:14]} 28. Kc3 {[%clk 0:00:03]}  Rd8 {[%clk 0:01:15]} 29. Kb4 {[%clk 0:00:03]}  Rd2 {[%clk 0:01:15]} 30. Bf3 {[%clk 0:00:03]}  Rxc2 {[%clk 0:01:15]} 0-1


[Site "https://www.chess.com"]

[Event "Titled Tuesday Blitz January 03 Early 2023"]
[White "Bashirli, Nail"]
[Black "Dominguez Perez, Leinier"]
[WhiteFideId "13406809"]
[BlackFideId "3503240"]
[WhiteElo "2326"]
[BlackElo "2739"]
[Result "1-0"]
[Round "08"]
[TimeControl "180+2"]
[Date "2023.01.03"]
[WhiteClock "0:00:18"]
[BlackClock "0:00:02"]

1. e4 {[%clk 0:03:00]}  c5 {[%clk 0:02:59]} 2. Nc3 {[%clk 0:02:58]}  d6 {[%clk 0:03:00]} 3. Nf3 {[%clk 0:02:49]}  Nf6 {[%clk 0:02:59]} 4. d4 {[%clk 0:02:44]}  cxd4 {[%clk 0:02:59]} 5. Nxd4 {[%clk 0:02:45]}  a6 {[%clk 0:02:59]} 6. Bc4 {[%clk 0:02:43]}  e6 {[%clk 0:02:59]} 7. Bb3 {[%clk 0:02:43]}  b5 {[%clk 0:02:59]} 8. Bg5 {[%clk 0:02:43]}  Be7 {[%clk 0:02:59]} 9. Qe2 {[%clk 0:02:43]}  b4 {[%clk 0:02:48]} 10. Na4 {[%clk 0:02:41]}  Bb7 {[%clk 0:02:42]} 11. f3 {[%clk 0:02:35]}  Qa5 {[%clk 0:02:37]} 12. Bd2 {[%clk 0:02:30]}  Nc6 {[%clk 0:02:04]} 13. Qc4 {[%clk 0:02:17]}  Nxd4 {[%clk 0:01:18]} 14. Qxd4 {[%clk 0:02:09]}  d5 {[%clk 0:01:19]} 15. e5 {[%clk 0:01:59]}  Nd7 {[%clk 0:01:18]} 16. a3 {[%clk 0:01:52]}  Qc7 {[%clk 0:01:18]} 17. axb4 {[%clk 0:01:46]}  Nxe5 {[%clk 0:01:08]} 18. O-O {[%clk 0:01:26]}  O-O {[%clk 0:01:04]} 19. Kh1 {[%clk 0:01:22]}  Nc6 {[%clk 0:01:00]} 20. Qb6 {[%clk 0:01:17]}  Qxb6 {[%clk 0:00:39]} 21. Nxb6 {[%clk 0:01:18]}  Rad8 {[%clk 0:00:38]} 22. c3 {[%clk 0:01:09]}  d4 {[%clk 0:00:36]} 23. Bf4 {[%clk 0:01:08]}  dxc3 {[%clk 0:00:33]} 24. bxc3 {[%clk 0:01:07]}  Rd3 {[%clk 0:00:33]} 25. Na4 {[%clk 0:01:03]}  g5 {[%clk 0:00:27]} 26. Bc4 {[%clk 0:00:57]}  Rdd8 {[%clk 0:00:19]} 27. Bg3 {[%clk 0:00:51]}  h5 {[%clk 0:00:18]} 28. Nc5 {[%clk 0:00:47]}  Bxc5 {[%clk 0:00:16]} 29. bxc5 {[%clk 0:00:48]}  e5 {[%clk 0:00:15]} 30. Rfb1 {[%clk 0:00:46]}  Ba8 {[%clk 0:00:12]} 31. Bxa6 {[%clk 0:00:42]}  h4 {[%clk 0:00:12]} 32. Bf2 {[%clk 0:00:43]}  h3 {[%clk 0:00:10]} 33. gxh3 {[%clk 0:00:38]}  Rd2 {[%clk 0:00:09]} 34. Be3 {[%clk 0:00:35]}  Rc2 {[%clk 0:00:10]} 35. Bxg5 {[%clk 0:00:32]}  f6 {[%clk 0:00:10]} 36. Bh6 {[%clk 0:00:27]}  Rd8 {[%clk 0:00:08]} 37. Bb7 {[%clk 0:00:16]}  Bxb7 {[%clk 0:00:06]} 38. Rxb7 {[%clk 0:00:17]}  Kh8 {[%clk 0:00:01]} 39. Bg7+ {[%clk 0:00:17]}  Kg8 {[%clk 0:00:02]} 40. Bxf6 {[%clk 0:00:18]}  Rdd2 {[%clk 0:00:02]} 41. Ra8+ {[%clk 0:00:16]}  Nd8 {[%clk 0:00:02]} 42. Rxd8+ {[%clk 0:00:17]}  Rxd8 {[%clk 0:00:02]} 43. Bxd8 {[%clk 0:00:18]} 1-0


[Site "https://www.chess.com"]